fUST/lending_fUST_20250621
["ID","MTS","AMOUNT","RATE_DAILY","PERIOD"]
[366824961,1750480233356,-500.0,0.00019769,2]
[366824962,1750480233370,-500.0,0.00019769,2]
[366824963,1750480233379,-500.0,0.00019769,2]
[366824964,1750480233390,-494.75982496,0.00019769,2]
[366824965,1750480233404,-5.24017504,0.00019769,2]
[366824966,1750480233414,-500.0,0.00019769,2]
[366824967,1750480233426,-500.0,0.00019769,2]
[366824968,1750480233436,-500.0,0.00019769,2]
[366824969,1750480233449,-500.0,0.00019769,2]
[366824970,1750480233459,-500.0,0.00019769,2]
[366824971,1750480233469,-500.0,0.00019769,2]
[366824972,1750480233480,-500.0,0.00019769,2]
[366824973,1750480233492,-500.0,0.00019769,2]
[366824974,1750480233506,-548.76857888,0.00019769,2]
[366824975,1750480233516,-500.0,0.00019769,2]
[366824976,1750480233526,-500.0,0.00019769,2]
[366824977,1750480233536,-500.0,0.00019769,2]
[366824978,1750480233546,-500.0,0.00019769,2]
[366824979,1750480233556,-500.0,0.00019769,2]
[366824980,1750480233565,-500.0,0.00019769,2]
[366824981,1750480233575,-500.0,0.00019769,2]
[366824982,1750480233584,-500.0,0.00019769,2]
[366824983,1750480233594,-500.0,0.00019769,2]
[366824984,1750480233603,-500.0,0.00019769,2]
[366824985,1750480233613,-500.0,0.00019769,2]
[366824986,1750480233623,-500.0,0.00019769,2]
[366824987,1750480233632,-500.0,0.00019769,2]
[366824988,1750480233642,-500.0,0.00019769,2]
[366824989,1750480233652,-500.0,0.00019769,2]
[366824990,1750480233661,-500.0,0.00019769,2]
[366824991,1750480233671,-500.0,0.00019769,2]
[366824992,1750480233680,-500.0,0.00019769,2]
[366824993,1750480233690,-500.0,0.00019769,2]
[366824994,1750480233701,-500.0,0.00019769,2]
[366824995,1750480233711,-500.0,0.00019769,2]
[366824996,1750480233721,-500.0,0.00019769,2]
[366824997,1750480233731,-500.0,0.00019769,2]
[366824998,1750480233743,-500.0,0.00019769,2]
[366824999,1750480233753,-500.0,0.00019769,2]
[366825000,1750480233763,-500.0,0.00019769,2]
[366825001,1750480233773,-500.0,0.00019769,2]
[366825002,1750480233783,-316.72500976,0.00019769,2]
[366825003,1750480233793,-500.0,0.00019769,2]
[366825004,1750480233803,-300.0,0.00019769,2]
[366825005,1750480233813,-151.0,0.0001977,2]
[366825006,1750480233823,-151.0,0.0001977,2]
[366825007,1750480233833,-369.03910652,0.00019773,2]
[366825008,1750480233843,-413.84185376,0.00019773,2]
[366825062,1750480241174,-3789.05861811,0.00019768,2]
[366825064,1750480241186,-480.0,0.00019768,2]
[366825066,1750480241198,-5552.66689364,0.00019768,2]
[366825070,1750480241231,-1212.94581559,0.00019768,2]
[366825257,1750480245797,-10106.52121078,0.00019768,2]
[366825286,1750480246629,-7943.71908488,0.00019768,2]
[366825287,1750480246640,-151.0,0.0001977,2]
[366825288,1750480246650,-86.15814624,0.00019773,2]
[366825289,1750480246660,-505.5347495,0.00019773,2]
[366825290,1750480246670,-500.0,0.00019773,2]
[366825291,1750480246680,-500.0,0.00019773,2]
[366825292,1750480246689,-500.0,0.00019773,2]
[366825293,1750480246699,-511.91922401,0.00019773,2]
[366825294,1750480246709,-500.0,0.00019773,2]
[366825295,1750480246719,-503.46765299,0.00019773,2]
[366825296,1750480246729,-500.0,0.00019773,2]
[366825297,1750480246739,-503.77880712,0.00019773,2]
[366825298,1750480246749,-500.0,0.00019773,2]
[366825299,1750480246758,-504.06017893,0.00019773,2]
[366825300,1750480246769,-500.0,0.00019773,2]
[366825301,1750480246778,-500.59847548,0.00019773,2]
[366825302,1750480246788,-502.55035468,0.00019773,2]
[366825303,1750480246798,-264.66609239,0.00019773,2]
[366825304,1750480246808,-392.41476111,0.00019773,2]
[366825305,1750480246818,-504.71564587,0.00019773,2]
[366825306,1750480246827,-505.06745363,0.00019773,2]
[366825307,1750480246838,-151.0,0.00019773,2]
[366825308,1750480246848,-151.0,0.00019773,2]
[366825309,1750480246858,-151.0,0.00019773,2]
[366825310,1750480246868,-151.0,0.00019773,2]
[366825311,1750480246878,-151.0,0.00019773,2]
[366825312,1750480246888,-151.0,0.00019773,2]
[366825313,1750480246898,-151.0,0.00019773,2]
[366825314,1750480246907,-331.257365,0.00019773,2]
[366825315,1750480246917,-331.257365,0.00019773,2]
[366825317,1750480246927,-153.356623,0.00019773,2]
[366825319,1750480246937,-151.0,0.00019773,2]
[366825320,1750480246947,-158.217559,0.00019773,2]
[366825321,1750480246957,-158.217559,0.00019773,2]
[366825322,1750480246967,-151.0,0.00019773,2]
[366825323,1750480246978,-151.0,0.00019773,2]
[366825324,1750480246988,-151.0,0.00019773,2]
[366825325,1750480246998,-151.0,0.00019773,2]
[366825326,1750480247007,-173.88,0.0001978,2]
[366825327,1750480247017,-173.158095,0.00019791,2]
[366825328,1750480247027,-151.0,0.00019791,2]
[366825329,1750480247037,-151.0,0.00019791,2]
[366825330,1750480247047,-152.879845,0.00019791,2]
[366825331,1750480247057,-151.0,0.00019791,2]
[366825332,1750480247066,-151.0,0.00019791,2]
[366825333,1750480247076,-500.0,0.00019793,2]
[366825334,1750480247086,-24900.0,0.00019794,2]
[366825335,1750480247095,-151.0,0.00019794,2]
[366825336,1750480247105,-151.0,0.00019794,2]
[366825337,1750480247115,-151.0,0.00019794,2]
[366825338,1750480247125,-151.50935,0.00019794,2]
[366825339,1750480247134,-151.0,0.00019794,2]
[366825340,1750480247144,-217.237617,0.00019794,2]
[366825341,1750480247154,-151.0,0.00019794,2]
[366825342,1750480247163,-151.0,0.00019794,2]
[366825343,1750480247173,-151.0,0.00019794,2]
[366825344,1750480247183,-151.0,0.00019794,2]
[366825345,1750480247192,-295.734244,0.00019794,2]
[366825346,1750480247202,-151.0,0.00019794,2]
[366825347,1750480247211,-500.0,0.00020067,2]
[366825348,1750480247221,-435.55752927,0.00020321,2]
[366825349,1750480247230,-504.60697318,0.00020321,2]
[366825350,1750480247345,-512.16682685,0.00020321,2]
[366825351,1750480247355,-505.16647366,0.00020321,2]
[366825352,1750480247366,-1000.0,0.00020321,2]
[366825353,1750480247379,-508.46987052,0.00020321,2]
[366825354,1750480247388,-310.97445311,0.00020341,2]
[366825355,1750480247398,-303.45018356,0.00020415,2]
[366825356,1750480247408,-285.28,0.000205,2]
[366825357,1750480247418,-151.0,0.00020548,2]
[366825358,1750480247428,-151.0,0.00020548,2]
[366825359,1750480247438,-193.667014,0.00020548,2]
[366825360,1750480247449,-151.0,0.00020548,2]
[366825361,1750480247459,-151.0,0.00020548,2]
[366825362,1750480247469,-249.357998,0.00020548,2]
[366825363,1750480247479,-151.0,0.00020548,2]
[366825364,1750480247489,-151.0,0.00020548,2]
[366825365,1750480247500,-288.744084,0.00020548,2]
[366825366,1750480247509,-331.257365,0.00020548,2]
[366825367,1750480247519,-331.257365,0.00020548,2]
[366825368,1750480247531,-500.0,0.00020548,2]
[366825369,1750480247543,-500.0,0.00020548,2]
[366825370,1750480247554,-500.0,0.00020548,2]
[366825371,1750480247564,-500.0,0.00020548,2]
[366825372,1750480247574,-500.0,0.00020548,2]
[366825373,1750480247585,-500.0,0.00020548,2]
[366825374,1750480247597,-500.0,0.00020548,2]
[366825375,1750480247608,-500.0,0.00020548,2]
[366825376,1750480247619,-500.0,0.00020548,2]
[366825377,1750480247628,-500.0,0.00020548,2]
[366825378,1750480247638,-500.0,0.00020548,2]
[366825379,1750480247649,-500.0,0.00020548,2]
[366825380,1750480247659,-500.0,0.00020548,2]
[366825381,1750480247669,-500.0,0.00020548,2]
[366825382,1750480247679,-500.0,0.00020548,2]
[366825383,1750480247688,-152.84197406,0.00020548,2]
[366825384,1750480247698,-500.0,0.00020548,2]
[366825385,1750480247707,-500.0,0.00020548,2]
[366825386,1750480247717,-500.0,0.00020548,2]
[366825387,1750480247726,-500.0,0.00020548,2]
[366825388,1750480247736,-500.0,0.00020548,2]
[366825389,1750480247747,-500.0,0.00020548,2]
[366825390,1750480247757,-156.16144,0.00020548,2]
[366825391,1750480247767,-158.217559,0.00020548,2]
[366825392,1750480247777,-158.217559,0.00020548,2]
[366825393,1750480247787,-1180.91,0.000206,2]
[366825394,1750480247797,-418.279562,0.00020642,2]
[366825395,1750480247807,-1318.97634622,0.00020668,2]
[366825396,1750480247817,-300.77029877,0.00020793,2]
[366825397,1750480247827,-2571.65610428,0.000208,4]
[366825398,1750480247836,-2571.65610409,0.000208,4]
[366825399,1750480247847,-2571.65610409,0.000208,4]
[366825400,1750480247857,-2571.65610409,0.000208,4]
[366825401,1750480247867,-2571.65610409,0.000208,4]
[366825402,1750480247877,-2571.65610409,0.000208,4]
[366825403,1750480247887,-181.33082,0.000208,2]
[366825404,1750480247897,-233.467374,0.000208,2]
[366825405,1750480247907,-151.0,0.000208,2]
[366825406,1750480247917,-151.379283,0.00020818,2]
[366825407,1750480247927,-507.50760208,0.00020819,7]
[366825408,1750480247937,-152.628423,0.00020819,2]
[366825409,1750480247947,-10526.0308059,0.00020821,2]
[366825410,1750480247957,-1529.03893992,0.00020868,2]
[366825411,1750480247966,-500.0,0.00020873,2]
[366825412,1750480247976,-169.42703452,0.00020873,2]
[366825413,1750480247987,-231.04872006,0.00020873,2]
[366825414,1750480247998,-167.160377,0.00020873,2]
[366825415,1750480248008,-151.0,0.00020873,2]
[366825416,1750480248018,-151.0,0.00020873,2]
[366825417,1750480248028,-3716.47,0.000209,2]
[366825418,1750480248039,-151.0,0.000209,2]
[366825419,1750480248049,-151.0,0.000209,2]
[366825420,1750480248059,-2571.65610409,0.00020934,4]
[366825421,1750480248070,-151.0,0.00021038,2]
[366825422,1750480248080,-331.257365,0.00021038,2]
[366825423,1750480248090,-331.257365,0.00021038,2]
[366825424,1750480248100,-2571.65610409,0.00021107,4]
[366825425,1750480248109,-303.45018356,0.00021163,2]
[366825426,1750480248119,-2571.65610409,0.00021279,5]
[366825427,1750480248128,-369.39148694,0.0002138,2]
[366825428,1750480248138,-2571.65610409,0.00021452,5]
[366825429,1750480248147,-420.0,0.00021529,2]
[366825430,1750480248156,-420.0,0.00021529,2]
[366825431,1750480248167,-195.0,0.00021529,2]
[366825432,1750480248176,-223.0,0.00021531,2]
[366825433,1750480248187,-158.217559,0.00021533,2]
[366825434,1750480248196,-158.217559,0.00021533,2]
[366825435,1750480248206,-29145.8480168,0.00021562,2]
[366825436,1750480248216,-2571.65610409,0.00021624,5]
[366825437,1750480248225,-1680.0,0.00021633,2]
[366825438,1750480248235,-151.0,0.00021636,2]
[366825439,1750480248245,-213.55395994,0.00021662,2]
[366825440,1750480248255,-160.0,0.00021662,2]
[366825441,1750480248265,-846.23824438,0.00021662,2]
[366825442,1750480248275,-1318.97634622,0.00021665,2]
[366825443,1750480248285,-500.0,0.00021783,2]
[366825444,1750480248295,-160.0,0.00021795,2]
[366825445,1750480248305,-2571.65610409,0.00021797,6]
[366825446,1750480248314,-210.99263749,0.00021813,2]
[366825447,1750480248324,-150.0,0.000219,2]
[366825448,1750480248334,-154.401029,0.000219,2]
[366825449,1750480248343,-151.0,0.000219,2]
[366825450,1750480248353,-151.0,0.000219,2]
[366825451,1750480248363,-151.0,0.000219,2]
[366825452,1750480248377,-151.0,0.00021904,2]
[366825453,1750480248387,-331.257365,0.00021904,2]
[366825454,1750480248397,-331.257365,0.00021904,2]
[366825455,1750480248407,-158.217559,0.00021904,2]
[366825456,1750480248417,-158.217559,0.00021904,2]
[366825457,1750480248427,-303.45018356,0.0002191,2]
[366825458,1750480248436,-460.0,0.00021917,2]
[366825459,1750480248448,-460.0,0.00021917,2]
[366825460,1750480248458,-497.74446575,0.00021917,2]
[366825461,1750480248468,-151.0,0.00021917,2]
[366825462,1750480248478,-151.0,0.00021917,2]
[366825463,1750480248489,-460.0,0.00021917,2]
[366825464,1750480248498,-460.0,0.00021917,2]
[366825465,1750480248508,-460.0,0.00021917,2]
[366825466,1750480248517,-460.0,0.00021917,2]
[366825467,1750480248527,-460.0,0.00021917,2]
[366825468,1750480248536,-500.0,0.00021917,15]
[366825469,1750480248546,-460.0,0.00021917,2]
[366825470,1750480248556,-151.0,0.00021918,2]
[366825471,1750480248566,-151.0,0.00021918,2]
[366825472,1750480248575,-151.0,0.00021918,2]
[366825473,1750480248585,-2571.65610409,0.00021969,6]
[366825474,1750480248595,-160.0,0.00021999,2]
[366825475,1750480248606,-1000.0,0.00022,2]
[366825476,1750480248616,-151.0,0.00022,7]
[366825477,1750480248626,-151.0,0.00022,7]
[366825478,1750480248636,-1180.91,0.00022,7]
[366825479,1750480248646,-171.0,0.00022,3]
[366825480,1750480248656,-172.90123035,0.00022,2]
[366825481,1750480248667,-151.0,0.00022004,7]
[366825482,1750480248677,-151.0,0.00022004,7]
[366825483,1750480248686,-365.7551581,0.0002211,2]
[366825484,1750480248696,-365.7551581,0.0002211,2]
[366825485,1750480248705,-365.7551581,0.0002211,2]
[366825486,1750480248715,-365.7551581,0.0002211,2]
[366825487,1750480248726,-365.7551581,0.0002211,2]
[366825488,1750480248736,-365.7551581,0.0002211,2]
[366825489,1750480248746,-365.7551581,0.0002211,2]
[366825490,1750480248755,-365.7551581,0.0002211,2]
[366825491,1750480248765,-365.7551581,0.0002211,2]
[366825492,1750480248774,-365.7551581,0.0002211,2]
[366825493,1750480248784,-365.7551581,0.0002211,2]
[366825494,1750480248794,-365.7551581,0.0002211,2]
[366825495,1750480248804,-365.7551581,0.0002211,2]
[366825496,1750480248814,-365.7551581,0.0002211,2]
[366825497,1750480248823,-348.9105002,0.0002211,2]
[366825498,1750480248834,-2571.65610409,0.00022141,6]
[366825499,1750480248843,-155.74044168,0.00022191,2]
[366825500,1750480248854,-482.9178976,0.00022191,2]
[366825501,1750480248864,-460.0,0.00022191,2]
[366825502,1750480248874,-460.0,0.00022191,2]
[366825503,1750480248884,-460.0,0.00022191,2]
[366825504,1750480248893,-460.0,0.00022191,2]
[366825505,1750480248903,-460.0,0.00022191,2]
[366825506,1750480248913,-500.0,0.00022191,15]
[366825507,1750480248923,-719.67,0.00022255,2]
[366825508,1750480248933,-3716.47,0.000223,7]
[366825509,1750480248942,-151.0,0.000223,7]
[366825510,1750480248954,-2571.65610409,0.00022314,7]
[366825511,1750480248963,-719.67,0.00022355,3]
[366825512,1750480248974,-400.0,0.0002238,2]
[366825513,1750480248985,-150.0,0.00022385,2]
[366825514,1750480248994,-245.688,0.00022385,2]
[366825515,1750480249004,-176.259,0.00022385,2]
[366825516,1750480249014,-168.0,0.00022387,2]
[366825517,1750480249025,-151.0,0.00022417,2]
[366825518,1750480249035,-331.257365,0.00022417,7]
[366825519,1750480249045,-331.257365,0.00022417,7]
[366825520,1750480249056,-719.67,0.00022455,5]
[366825521,1750480249066,-151.0,0.00022465,7]
[366825522,1750480249077,-460.0,0.00022465,2]
[366825523,1750480249087,-460.0,0.00022465,2]
[366825524,1750480249096,-460.0,0.00022465,2]
[366825525,1750480249106,-460.0,0.00022465,2]
[366825526,1750480249116,-460.0,0.00022465,2]
[366825527,1750480249126,-500.0,0.00022465,15]
[366825528,1750480249136,-2571.65610409,0.00022486,7]
[366825529,1750480249147,-160.0,0.00022486,7]
[366825530,1750480249156,-1018.869494,0.00022491,4]
[366825531,1750480249167,-500.0,0.000225,2]
[366825532,1750480249177,-500.0,0.00022533,2]
[366825533,1750480249187,-500.0,0.00022533,2]
[366825534,1750480249198,-264.08682166,0.00022533,2]
[366825535,1750480249208,-263.47700735,0.00022533,2]
[366825536,1750480249219,-260.66294866,0.00022533,2]
[366825537,1750480249228,-229.44547959,0.00022533,2]
[366825538,1750480249238,-500.0,0.00022533,2]
[366825539,1750480249249,-500.99231854,0.00022533,2]
[366825540,1750480249258,-500.0,0.00022533,2]
[366825541,1750480249268,-719.67,0.00022555,2]
[366825542,1750480249278,-500.0,0.00022565,2]
[366825543,1750480249288,-501.0720701,0.00022565,2]
[366825544,1750480249298,-205.31944239,0.00022565,2]
[366825545,1750480249309,-500.0,0.00022565,2]
[366825546,1750480249319,-500.0,0.00022586,2]
[366825547,1750480249328,-504.0207603,0.00022586,2]
[366825548,1750480249338,-151.0,0.00022586,7]
[366825549,1750480249348,-151.0,0.00022586,7]
[366825550,1750480249358,-158.217559,0.00022586,7]
[366825551,1750480249368,-158.217559,0.00022586,7]
[366825552,1750480249379,-500.0,0.00022587,2]
[366825553,1750480249389,-500.48147573,0.00022587,2]
[366825554,1750480249399,-500.0,0.00022587,2]
[366825555,1750480249409,-500.0,0.00022587,2]
[366825556,1750480249419,-500.57650978,0.00022587,2]
[366825557,1750480249430,-279.56378349,0.00022612,2]
[366825558,1750480249440,-152.21991938,0.00022612,2]
[366825559,1750480249450,-719.67,0.00022655,5]
[366825560,1750480249461,-240.971046,0.00022655,7]
[366825561,1750480249471,-303.45018356,0.00022657,2]
[366825562,1750480249481,-2571.65610409,0.00022659,7]
[366825563,1750480249492,-1318.97634622,0.00022663,2]
[366825564,1750480249502,-151.0,0.00022682,7]
[366825565,1750480249512,-237.173738,0.00022682,7]
[366825566,1750480249522,-500.0,0.00022688,2]
[366825567,1750480249531,-500.0,0.00022688,2]
[366825568,1750480249541,-505.66247623,0.00022688,2]
[366825569,1750480249552,-501.00085733,0.00022688,2]
[366825570,1750480249562,-500.0,0.00022688,2]
[366825571,1750480249572,-500.0,0.00022688,2]
[366825572,1750480249581,-501.40809659,0.00022688,2]
[366825573,1750480249591,-500.0,0.00022688,2]
[366825574,1750480249601,-500.0,0.00022688,2]
[366825575,1750480249611,-600.0,0.00022688,2]
[366825576,1750480249621,-500.0,0.00022688,2]
[366825577,1750480249631,-500.63881092,0.00022688,2]
[366825578,1750480249641,-500.50406835,0.00022688,2]
[366825579,1750480249651,-500.0,0.00022688,2]
[366825580,1750480249662,-500.47298741,0.00022688,2]
[366825581,1750480249672,-500.0,0.00022688,2]
[366825582,1750480249683,-500.0,0.00022688,2]
[366825583,1750480249694,-500.92350632,0.00022688,2]
[366825584,1750480249704,-500.0,0.00022688,2]
[366825585,1750480249714,-501.0168641,0.00022688,2]
[366825586,1750480249724,-500.0,0.00022688,2]
[366825587,1750480249734,-160.82142123,0.00022688,2]
[366825588,1750480249744,-427.06538794,0.00022688,2]
[366825589,1750480249754,-500.46439135,0.00022688,2]
[366825590,1750480249764,-506.32255219,0.00022688,2]
[366825591,1750480249773,-540.9558834,0.00022688,2]
[366825592,1750480249782,-500.47506104,0.00022688,2]
[366825593,1750480249792,-500.0,0.00022688,2]
[366825594,1750480249802,-501.0075154,0.00022688,2]
[366825595,1750480249903,-501.0464664,0.00022688,2]
[366825596,1750480249914,-501.0321702,0.00022688,2]
[366825597,1750480249924,-500.0,0.00022688,2]
[366825598,1750480249934,-500.0,0.00022688,2]
[366825599,1750480249944,-500.0,0.00022688,2]
[366825600,1750480249954,-500.0,0.00022688,2]
[366825601,1750480249964,-153.08200427,0.00022688,2]
[366825602,1750480249974,-268.65876723,0.000227,2]
[366825603,1750480249984,-500.0,0.000227,2]
[366825604,1750480249994,-500.0,0.00022724,2]
[366825605,1750480250004,-460.0,0.00022739,2]
[366825606,1750480250014,-460.0,0.00022739,2]
[366825607,1750480250025,-460.0,0.00022739,2]
[366825608,1750480250035,-460.0,0.00022739,2]
[366825609,1750480250044,-460.0,0.00022739,2]
[366825610,1750480250055,-500.0,0.00022739,15]
[366825611,1750480250066,-719.67,0.00022755,3]
[366825612,1750480250076,-151.0,0.00022755,7]
[366825613,1750480250086,-151.0,0.00022777,2]
[366825614,1750480250096,-331.257365,0.00022777,7]
[366825615,1750480250106,-331.257365,0.00022777,7]
[366825616,1750480250115,-502.96479692,0.00022777,2]
[366825617,1750480250125,-500.0,0.0002278,2]
[366825618,1750480250135,-207.4,0.00022782,2]
[366825619,1750480250144,-5000.0,0.00022782,2]
[366825620,1750480250154,-3245.72344545,0.00022782,2]
[366825621,1750480250164,-500.0,0.00022782,2]
[366825622,1750480250174,-500.0,0.00022782,2]
[366825623,1750480250183,-1765.10456512,0.00022782,2]
[366825624,1750480250193,-500.0,0.00022782,2]
[366825625,1750480250204,-500.0,0.00022782,2]
[366825626,1750480250213,-500.0,0.00022782,2]
[366825627,1750480250223,-500.0,0.00022782,2]
[366825628,1750480250233,-500.0,0.00022782,2]
[366825629,1750480250242,-500.0,0.00022782,2]
[366825630,1750480250253,-500.0,0.00022782,2]
[366825631,1750480250263,-500.0,0.00022782,2]
[366825632,1750480250272,-500.0,0.00022782,2]
[366825633,1750480250282,-500.0,0.00022782,2]
[366825634,1750480250291,-500.0,0.00022782,2]
[366825635,1750480250302,-500.0,0.00022782,2]
[366825636,1750480250312,-500.0,0.00022782,2]
[366825637,1750480250322,-500.0,0.00022782,2]
[366825638,1750480250332,-500.0,0.00022782,2]
[366825639,1750480250341,-500.0,0.00022782,2]
[366825640,1750480250351,-500.0,0.00022782,2]
[366825641,1750480250361,-500.0,0.00022782,2]
[366825642,1750480250374,-500.0,0.00022782,2]
[366825643,1750480250383,-158.217559,0.00022782,7]
[366825644,1750480250393,-158.217559,0.00022782,7]
[366825645,1750480250403,-171.0,0.000228,4]
[366825646,1750480250413,-171.0,0.000228,3]
[366825647,1750480250423,-160.0,0.000228,2]
[366825648,1750480250432,-424.93363889,0.000228,2]
[366825649,1750480250443,-836.41202323,0.000228,2]
[366825650,1750480250453,-230.10342898,0.00022803,2]
[366825651,1750480250462,-151.0,0.00022831,7]
[366825652,1750480250472,-151.0,0.00022831,7]
[366825653,1750480250482,-2571.65610409,0.00022831,8]
[366825654,1750480250493,-719.67,0.00022855,2]
[366825655,1750480250504,-106425.1806515,0.000229,2]
[366825656,1750480250514,-365.23,0.000229,2]
[366825657,1750480250524,-234.53242,0.00022925,7]
[366825658,1750480250535,-25513.20807659,0.00022951,2]
[366825659,1750480250545,-151.99377,0.00022951,7]
[366825660,1750480250554,-251.941362,0.00022951,2]
[366825661,1750480250564,-331.257365,0.00022951,7]
[366825662,1750480250574,-331.257365,0.00022951,7]
[366825663,1750480250583,-158.217559,0.00022951,7]
[366825664,1750480250594,-158.217559,0.00022951,7]
[366825665,1750480250603,-719.67,0.00022955,3]
[366825666,1750480250614,-151.0,0.00022955,7]
[366825667,1750480250624,-1000.0,0.00022958,2]
[366825668,1750480250634,-1000.0,0.00022965,2]
[366825669,1750480250643,-601.8257194,0.0002299,2]
[366825672,1750480421370,165.234228,0.00018778,2]
[366825673,1750480443020,-545.526322,0.00019201,2]
[366825675,1750480670309,163.876811,0.00013699,2]
[366825680,1750480759960,1000.0,0.00019,2]
[366825681,1750480771741,500.0,0.00015,2]
[366825682,1750480772408,-151.0,0.00019201,2]
[366825683,1750480782301,151.0,0.00019102,2]
[366825684,1750480836870,464.14,0.00019,2]
[366825685,1750480837396,-103.473678,0.00019201,2]
[366825693,1750481371161,510.0,0.00019102,2]
[366825694,1750481411650,441.12588692,0.00019102,2]
[366825752,1750481431877,-1169.5957304,0.00019414,2]
[366825754,1750481431888,-666.0,0.00019717,2]
[366825756,1750481431898,-300.0,0.00019768,2]
[366825758,1750481431908,-300.0,0.00019768,2]
[366825760,1750481431918,-300.0,0.00019768,2]
[366825762,1750481431928,-1200.0,0.00019768,2]
[366825764,1750481431938,-160.0,0.00019769,2]
[366825766,1750481431948,-1000.0,0.00019769,2]
[366825768,1750481431958,-1000.0,0.00019769,2]
[366825770,1750481431967,-1000.0,0.00019769,2]
[366825771,1750481431976,-1000.0,0.00019769,2]
[366825773,1750481431987,-1000.0,0.00019769,2]
[366825774,1750481431996,-1000.0,0.00019769,2]
[366825776,1750481432006,-1000.0,0.00019769,2]
[366825778,1750481432016,-1000.0,0.00019769,2]
[366825779,1750481432025,-1000.0,0.00019769,2]
[366825780,1750481432035,-1000.0,0.0001979,2]
[366825781,1750481432055,-1000.0,0.00019793,2]
[366825782,1750481432067,-500.0,0.0002032,2]
[366825783,1750481432076,-500.0,0.0002032,2]
[366825784,1750481432086,-159.65852607,0.0002032,2]
[366825785,1750481432096,-500.0,0.0002032,2]
[366825786,1750481432107,-256.849379,0.0002032,2]
[366825787,1750481432116,-276.72442158,0.0002032,2]
[366825788,1750481432126,-500.0,0.0002032,2]
[366825789,1750481432135,-500.0,0.0002032,2]
[366825790,1750481432145,-500.0,0.0002032,2]
[366825791,1750481432155,-500.0,0.0002032,2]
[366825792,1750481432165,-500.0,0.0002032,2]
[366825793,1750481432175,-616.46348252,0.0002032,2]
[366825794,1750481432184,-500.0,0.0002032,2]
[366825795,1750481432194,-500.0,0.0002032,2]
[366825796,1750481432204,-5984.37275806,0.00020324,2]
[366825797,1750481432215,-1000.0,0.00020547,2]
[366825798,1750481432225,-218.013,0.00020548,2]
[366825799,1750481432235,-500.0,0.00020548,2]
[366825800,1750481432245,-500.0,0.00020548,2]
[366825801,1750481432254,-500.0,0.00020548,2]
[366825802,1750481432264,-500.0,0.00020548,2]
[366825803,1750481432274,-196.83550373,0.00020548,2]
[366825804,1750481432284,-1000.0,0.00020799,2]
[366825805,1750481432293,-502.27731976,0.00020829,2]
[366825806,1750481432303,-507.25486951,0.00020829,2]
[366825807,1750481432313,-1000.0,0.00020899,2]
[366825808,1750481432323,-500.0,0.000209,2]
[366825809,1750481432332,-1155.62001209,0.000209,4]
[366825810,1750481432342,-183.12,0.00020955,2]
[366825811,1750481432353,-156.587,0.00020956,2]
[366825812,1750481432362,-9999.40328087,0.00020968,2]
[366825813,1750481432376,-6093.94214123,0.00020968,2]
[366825814,1750481432386,-434.5561559,0.00021019,2]
[366825815,1750481432396,-1155.62001183,0.00021038,4]
[366825816,1750481432406,-160.0,0.00021139,2]
[366825817,1750481432416,-500.0,0.00021163,2]